[Event "*** Titled Tuesday Blitz"]
[Site "Chess.com"]
[Date "2021.04.20"]
[Round "1"]
[White "muchojogo"]
[Black "Indianlad"]
[Result "0-1"]
[WhiteElo "2461"]
[BlackElo "2923"]
[TimeControl "180+1"]
[EndTime "10:08:20 PDT"]
[Termination "Indianlad won by resignation"]

1. d4 {[%clk 0:03:00.3]} 1... Nf6 {[%clk 0:02:59.5]} 2. Bf4 {[%clk 0:02:57]}
2... g6 {[%clk 0:02:59.1]} 3. e3 {[%clk 0:02:57.2]} 3... Bg7 {[%clk 0:02:59.1]}
4. Nf3 {[%clk 0:02:57.8]} 4... O-O {[%clk 0:02:59.2]} 5. Be2 {[%clk 0:02:57.8]}
5... d6 {[%clk 0:02:58.7]} 6. h3 {[%clk 0:02:58.3]} 6... Nbd7 {[%clk 0:02:57.5]}
7. O-O {[%clk 0:02:56.5]} 7... Qe8 {[%clk 0:02:52.5]} 8. Bh2 {[%clk 0:02:54.7]}
8... e5 {[%clk 0:02:52.6]} 9. c4 {[%clk 0:02:53.5]} 9... b6 {[%clk 0:02:49.4]}
10. a4 {[%clk 0:02:51.2]} 10... Bb7 {[%clk 0:02:45.6]} 11. a5 {[%clk 0:02:50.9]}
11... a6 {[%clk 0:02:08.7]} 12. Nc3 {[%clk 0:02:48.6]} 12... Qe7 {[%clk
0:02:08.2]} 13. Qb3 {[%clk 0:02:24.1]} 13... exd4 {[%clk 0:02:03.4]} 14. exd4
{[%clk 0:02:20.8]} 14... Ne4 {[%clk 0:02:01.7]} 15. Rfe1 {[%clk 0:02:12.7]}
15... Kh8 {[%clk 0:01:52.4]} 16. Bd3 {[%clk 0:02:03.6]} 16... f5 {[%clk
0:01:51.3]} 17. Qc2 {[%clk 0:02:03.6]} 17... Rae8 {[%clk 0:01:50.2]} 18. axb6
{[%clk 0:01:56.8]} 18... cxb6 {[%clk 0:01:50.1]} 19. Re2 {[%clk 0:01:34.5]}
19... Ndf6 {[%clk 0:01:40.2]} 20. Rae1 {[%clk 0:01:32.5]} 20... Qd8 {[%clk
0:01:37.2]} 21. d5 {[%clk 0:01:25.2]} 21... Nc5 {[%clk 0:01:32.5]} 22. b4 {[%clk
0:01:16.5]} 22... Nxd3 {[%clk 0:01:32.3]} 23. Qxd3 {[%clk 0:01:17.4]} 23... Rxe2
{[%clk 0:01:32.2]} 24. Rxe2 {[%clk 0:01:16.8]} 24... Re8 {[%clk 0:01:20.5]} 25.
Rxe8+ {[%clk 0:01:14.8]} 25... Nxe8 {[%clk 0:01:21.4]} 26. Nd4 {[%clk
0:01:14.4]} 26... Qf6 {[%clk 0:01:21.5]} 27. Nce2 {[%clk 0:01:09.1]} 27... Nc7
{[%clk 0:01:21.7]} 28. Bf4 {[%clk 0:01:03.5]} 28... h6 {[%clk 0:01:21.7]} 29.
Bd2 {[%clk 0:01:01.4]} 29... b5 {[%clk 0:01:21.6]} 30. cxb5 {[%clk 0:00:53.7]}
30... axb5 {[%clk 0:01:22]} 31. Nxb5 {[%clk 0:00:52.3]} 31... Nxd5 {[%clk
0:01:20.7]} 32. Nbd4 {[%clk 0:00:45.6]} 32... f4 {[%clk 0:01:16.3]} 33. Nf3
{[%clk 0:00:42.7]} 33... g5 {[%clk 0:01:12.7]} 34. b5 {[%clk 0:00:39.8]} 34...
Qa1+ {[%clk 0:01:08.1]} 35. Kh2 {[%clk 0:00:39.3]} 35... Qf1 {[%clk 0:01:08.1]}
36. Be1 {[%clk 0:00:34.2]} 36... Kg8 {[%clk 0:00:54.5]} 37. Nxf4 {[%clk
0:00:34.1]} 37... Qxd3 {[%clk 0:00:53.3]} 38. Nxd3 {[%clk 0:00:35]} 38... Kf7
{[%clk 0:00:53.2]} 39. Bd2 {[%clk 0:00:34.4]} 39... Nc3 {[%clk 0:00:52.8]} 40.
Nb4 {[%clk 0:00:28.1]} 40... Nxb5 {[%clk 0:00:52]} 41. Be3 {[%clk 0:00:25.8]}
41... Ke6 {[%clk 0:00:50.9]} 42. Nc2 {[%clk 0:00:26]} 42... Bxf3 {[%clk
0:00:49.7]} 43. gxf3 {[%clk 0:00:26.2]} 43... Be5+ {[%clk 0:00:50.3]} 44. Kg2
{[%clk 0:00:25.7]} 44... d5 {[%clk 0:00:51.2]} 45. Kf1 {[%clk 0:00:26.3]} 45...
d4 {[%clk 0:00:51.3]} 46. Bd2 {[%clk 0:00:26.8]} 46... Kd5 {[%clk 0:00:51]} 47.
Ke2 {[%clk 0:00:26.5]} 47... Kc4 {[%clk 0:00:51.7]} 48. Ne1 {[%clk 0:00:26.2]}
48... Nc3+ {[%clk 0:00:44.7]} 49. Bxc3 {[%clk 0:00:23.4]} 49... dxc3 {[%clk
0:00:45.6]} 50. Nc2 {[%clk 0:00:23.9]} 50... Bf4 {[%clk 0:00:45]} 51. Ne1 {[%clk
0:00:22.1]} 51... Bd2 {[%clk 0:00:43.6]} 52. Nc2 {[%clk 0:00:22.5]} 52... h5
{[%clk 0:00:43.2]} 53. Kd1 {[%clk 0:00:21.4]} 53... Bf4 {[%clk 0:00:39.2]} 54.
Ke2 {[%clk 0:00:21.5]} 54... Bd6 {[%clk 0:00:39.7]} 55. Ne3+ {[%clk 0:00:21.2]}
55... Kb3 {[%clk 0:00:38.2]} 56. Kd3 {[%clk 0:00:21.6]} 56... Bc5 {[%clk
0:00:38.4]} 57. Nc2 {[%clk 0:00:14.8]} 57... Bxf2 {[%clk 0:00:37.6]} 58. Na1+
{[%clk 0:00:13.6]} 58... Kb2 {[%clk 0:00:37.6]} 59. Nc2 {[%clk 0:00:14.5]} 59...
Bc5 {[%clk 0:00:37.4]} 60. Ne1 {[%clk 0:00:14.8]} 60... Be7 {[%clk 0:00:31.5]}
61. Nc2 {[%clk 0:00:15.2]} 61... Bf6 {[%clk 0:00:31.9]} 62. Ne3 {[%clk
0:00:15.2]} 62... Kb3 {[%clk 0:00:32.4]} 63. Nc2 {[%clk 0:00:16.1]} 63... Be5
{[%clk 0:00:31.3]} 64. Ne3 {[%clk 0:00:16.3]} 64... Bf4 {[%clk 0:00:26.8]} 65.
Nc2 {[%clk 0:00:17.2]} 65... Bd2 {[%clk 0:00:26.4]} 66. Nd4+ {[%clk 0:00:17.4]}
66... Kb4 {[%clk 0:00:26.2]} 67. Nc2+ {[%clk 0:00:18.3]} 67... Kc5 {[%clk
0:00:26.2]} 68. Nd4 {[%clk 0:00:18.5]} 68... Kd5 {[%clk 0:00:25]} 69. Nc2 {[%clk
0:00:18.7]} 69... Ke5 {[%clk 0:00:24.9]} 70. Ke2 {[%clk 0:00:18.7]} 70... Kf4
{[%clk 0:00:24.2]} 71. Kf2 {[%clk 0:00:19.2]} 71... Bc1 {[%clk 0:00:24.7]} 72.
Nd4 {[%clk 0:00:18.2]} 72... Be3+ {[%clk 0:00:24.9]} 0-1

[Event "*** Titled Tuesday Blitz"]
[Site "Chess.com"]
[Date "2021.04.20"]
[Round "1"]
[White "alexgo05"]
[Black "poppy73"]
[Result "0-1"]
[WhiteElo "2493"]
[BlackElo "2215"]
[TimeControl "180+1"]
[EndTime "10:08:20 PDT"]
[Termination "poppy73 won by resignation"]

1. d4 {[%clk 0:02:59.1]} 1... Nf6 {[%clk 0:02:58.6]} 2. Nc3 {[%clk 0:02:59]}
2... d5 {[%clk 0:02:57.4]} 3. Bg5 {[%clk 0:02:59]} 3... Nbd7 {[%clk 0:02:55.2]}
4. f3 {[%clk 0:02:59]} 4... h6 {[%clk 0:02:45.7]} 5. Bh4 {[%clk 0:02:51.7]} 5...
e6 {[%clk 0:02:40.9]} 6. e4 {[%clk 0:02:50.8]} 6... dxe4 {[%clk 0:02:40.4]} 7.
fxe4 {[%clk 0:02:50.6]} 7... Be7 {[%clk 0:02:38.1]} 8. Qf3 {[%clk 0:02:18.3]}
8... c5 {[%clk 0:02:08.9]} 9. dxc5 {[%clk 0:02:14.1]} 9... Nxc5 {[%clk
0:02:06.7]} 10. Bb5+ {[%clk 0:02:08.4]} 10... Bd7 {[%clk 0:02:02.9]} 11. O-O-O
{[%clk 0:02:08]} 11... Qc7 {[%clk 0:02:01.6]} 12. Bxd7+ {[%clk 0:02:01.8]} 12...
Ncxd7 {[%clk 0:01:59.8]} 13. Nge2 {[%clk 0:01:40.1]} 13... Ne5 {[%clk
0:01:45.8]} 14. Qh3 {[%clk 0:01:19.5]} 14... O-O {[%clk 0:01:32.7]} 15. Rhf1
{[%clk 0:01:18.4]} 15... Ng6 {[%clk 0:01:22.8]} 16. Bg3 {[%clk 0:01:10.5]} 16...
Qc5 {[%clk 0:01:18.1]} 17. Nf4 {[%clk 0:01:05.5]} 17... Nxf4 {[%clk 0:01:08.8]}
18. Bxf4 {[%clk 0:01:05.9]} 18... Rac8 {[%clk 0:01:06.5]} 19. Rd2 {[%clk
0:00:44.1]} 19... Qh5 {[%clk 0:01:00.4]} 20. Qg3 {[%clk 0:00:35.6]} 20... Rxc3
{[%clk 0:00:55]} 21. Qxc3 {[%clk 0:00:27.8]} 21... Nxe4 {[%clk 0:00:55.4]} 22.
Qc7 {[%clk 0:00:27.9]} 22... Nxd2 {[%clk 0:00:54.4]} 23. Bxd2 {[%clk 0:00:28.8]}
23... Bg5 {[%clk 0:00:53.1]} 24. Qxb7 {[%clk 0:00:29.1]} 24... Qe2 {[%clk
0:00:35.1]} 25. Rd1 {[%clk 0:00:27.5]} 25... Rd8 {[%clk 0:00:32.7]} 26. Qf3
{[%clk 0:00:08.9]} 26... Rxd2 {[%clk 0:00:18.5]} 27. Qxe2 {[%clk 0:00:08.8]}
27... Rxe2+ {[%clk 0:00:18.7]} 28. Kb1 {[%clk 0:00:09.2]} 28... Rxg2 {[%clk
0:00:17.5]} 29. c4 {[%clk 0:00:09.6]} 29... Rxh2 {[%clk 0:00:15.7]} 30. c5
{[%clk 0:00:09.8]} 30... Rd2 {[%clk 0:00:14.8]} 31. Rc1 {[%clk 0:00:07.9]} 31...
Rd8 {[%clk 0:00:14.6]} 32. Rc4 {[%clk 0:00:07.9]} 32... Rd1+ {[%clk 0:00:13.4]}
33. Kc2 {[%clk 0:00:07.3]} 33... Rc1+ {[%clk 0:00:13.9]} 34. Kb3 {[%clk
0:00:08.1]} 34... Rxc4 {[%clk 0:00:14.8]} 35. Kxc4 {[%clk 0:00:09]} 35... Bf4
{[%clk 0:00:14.4]} 36. b4 {[%clk 0:00:08.8]} 36... h5 {[%clk 0:00:14.5]} 37. Kd4
{[%clk 0:00:07.7]} 37... h4 {[%clk 0:00:14.6]} 38. Ke4 {[%clk 0:00:08.3]} 38...
Bb8 {[%clk 0:00:13.8]} 39. b5 {[%clk 0:00:08.4]} 39... h3 {[%clk 0:00:13.1]} 40.
Kf3 {[%clk 0:00:08.5]} 40... g5 {[%clk 0:00:11.7]} 41. a4 {[%clk 0:00:08.6]}
41... g4+ {[%clk 0:00:11.7]} 42. Kf2 {[%clk 0:00:09.2]} 42... g3+ {[%clk
0:00:11.3]} 43. Kg1 {[%clk 0:00:09.7]} 43... g2 {[%clk 0:00:09.8]} 44. a5 {[%clk
0:00:09.1]} 44... Be5 {[%clk 0:00:08.2]} 45. b6 {[%clk 0:00:08.8]} 45... axb6
{[%clk 0:00:08.1]} 46. a6 {[%clk 0:00:06.4]} 46... Bd4+ {[%clk 0:00:05.8]} 47.
Kh2 {[%clk 0:00:06.6]} 47... g1=Q+ {[%clk 0:00:06.3]} 48. Kxh3 {[%clk
0:00:07.5]} 48... Qh1+ {[%clk 0:00:06.5]} 49. Kg4 {[%clk 0:00:07.8]} 49... Bxc5
{[%clk 0:00:06.5]} 50. a7 {[%clk 0:00:07.9]} 50... Qg2+ {[%clk 0:00:06.6]} 51.
Kf4 {[%clk 0:00:07.2]} 51... f6 {[%clk 0:00:03.5]} 52. a8=Q+ {[%clk 0:00:05.4]}
52... Qxa8 {[%clk 0:00:04.4]} 53. Kg4 {[%clk 0:00:05.6]} 53... Qe4+ {[%clk
0:00:04.5]} 54. Kh5 {[%clk 0:00:05.9]} 54... Qf5+ {[%clk 0:00:04]} 55. Kh4
{[%clk 0:00:05.2]} 55... Qg5+ {[%clk 0:00:04.6]} 56. Kh3 {[%clk 0:00:05.5]}
56... Bf2 {[%clk 0:00:04.8]} 57. Kh2 {[%clk 0:00:05.4]} 57... Qg3+ {[%clk
0:00:05.4]} 0-1

[Event "*** Titled Tuesday Blitz"]
[Site "Chess.com"]
[Date "2021.04.20"]
[Round "1"]
[White "AlexTriapishko"]
[Black "MustafayevFarid2004"]
[Result "1-0"]
[WhiteElo "2891"]
[BlackElo "2456"]
[TimeControl "180+1"]
[EndTime "10:08:22 PDT"]
[Termination "AlexTriapishko won by resignation"]

1. Nf3 {[%clk 0:03:00.9]} 1... Nf6 {[%clk 0:02:58.6]} 2. c4 {[%clk 0:03:01.3]}
2... g6 {[%clk 0:02:57.9]} 3. Nc3 {[%clk 0:03:01.6]} 3... Bg7 {[%clk 0:02:57.8]}
4. e4 {[%clk 0:03:01.8]} 4... d6 {[%clk 0:02:58.7]} 5. d4 {[%clk 0:03:01.3]}
5... O-O {[%clk 0:02:59.4]} 6. Be2 {[%clk 0:03:00.8]} 6... e5 {[%clk 0:02:59.5]}
7. dxe5 {[%clk 0:02:52.8]} 7... dxe5 {[%clk 0:02:59]} 8. Qxd8 {[%clk 0:02:53.7]}
8... Rxd8 {[%clk 0:02:59.1]} 9. Bg5 {[%clk 0:02:54.6]} 9... Re8 {[%clk
0:02:58.4]} 10. Nd5 {[%clk 0:02:54.4]} 10... Nxd5 {[%clk 0:02:52.4]} 11. cxd5
{[%clk 0:02:55.3]} 11... c6 {[%clk 0:02:49.6]} 12. Bc4 {[%clk 0:02:55.2]} 12...
Bd7 {[%clk 0:02:30.4]} 13. O-O-O {[%clk 0:02:29.3]} 13... cxd5 {[%clk
0:02:28.8]} 14. Bxd5 {[%clk 0:02:28.4]} 14... Bc6 {[%clk 0:02:29.1]} 15. Kb1
{[%clk 0:02:26.5]} 15... Bxd5 {[%clk 0:02:27.3]} 16. Rxd5 {[%clk 0:02:25.9]}
16... Nc6 {[%clk 0:02:27.5]} 17. Rhd1 {[%clk 0:02:25.5]} 17... h6 {[%clk
0:02:25.9]} 18. Be3 {[%clk 0:02:24.9]} 18... b6 {[%clk 0:02:16.5]} 19. Rd7
{[%clk 0:02:19.3]} 19... Rad8 {[%clk 0:02:15.4]} 20. h4 {[%clk 0:02:11.9]} 20...
f5 {[%clk 0:02:14.7]} 21. R1d6 {[%clk 0:02:06.5]} 21... Rxd7 {[%clk 0:01:47.6]}
22. Rxd7 {[%clk 0:02:07.4]} 22... f4 {[%clk 0:01:46.8]} 23. Bd2 {[%clk
0:02:06.9]} 23... Rd8 {[%clk 0:01:46.9]} 24. Rxd8+ {[%clk 0:01:50.2]} 24... Nxd8
{[%clk 0:01:46.7]} 25. Bc3 {[%clk 0:01:51.1]} 25... Nc6 {[%clk 0:01:46.4]} 26.
Kc2 {[%clk 0:01:51.7]} 26... Kf7 {[%clk 0:01:45.8]} 27. a4 {[%clk 0:01:50.7]}
27... a6 {[%clk 0:01:45.6]} 28. Kd3 {[%clk 0:01:41.4]} 28... b5 {[%clk
0:01:45.3]} 29. axb5 {[%clk 0:01:40.8]} 29... axb5 {[%clk 0:01:45.6]} 30. Ne1
{[%clk 0:01:29]} 30... Ke6 {[%clk 0:01:45]} 31. Nc2 {[%clk 0:01:27.8]} 31... Bf8
{[%clk 0:01:45]} 32. g3 {[%clk 0:01:14.8]} 32... Bc5 {[%clk 0:01:44]} 33. Ke2
{[%clk 0:01:08.7]} 33... b4 {[%clk 0:01:43.2]} 34. Bd2 {[%clk 0:01:07.9]} 34...
b3 {[%clk 0:01:40.2]} 35. Na1 {[%clk 0:01:01.1]} 35... Nd4+ {[%clk 0:01:29]} 36.
Kd3 {[%clk 0:01:01.3]} 36... Nf3 {[%clk 0:01:28.3]} 37. gxf4 {[%clk 0:00:50.2]}
37... Nxd2 {[%clk 0:01:27.9]} 38. Kxd2 {[%clk 0:00:42.4]} 38... exf4 {[%clk
0:01:26.4]} 39. Ke2 {[%clk 0:00:38.3]} 39... Bd4 {[%clk 0:01:20.2]} 40. Nxb3
{[%clk 0:00:38.5]} 40... Bxb2 {[%clk 0:01:20.4]} 41. Nc5+ {[%clk 0:00:39.2]}
41... Kf6 {[%clk 0:01:18.3]} 42. Nd3 {[%clk 0:00:38.6]} 42... Be5 {[%clk
0:01:13.3]} 43. Kf3 {[%clk 0:00:37.8]} 43... g5 {[%clk 0:00:31.4]} 44. Kg4
{[%clk 0:00:37.8]} 44... Bd4 {[%clk 0:00:30.9]} 45. f3 {[%clk 0:00:34.9]} 45...
Be3 {[%clk 0:00:29.1]} 46. hxg5+ {[%clk 0:00:23.4]} 46... hxg5 {[%clk
0:00:28.8]} 47. Nb4 {[%clk 0:00:24.3]} 47... Kg6 {[%clk 0:00:28.2]} 48. Nd5
{[%clk 0:00:22.9]} 48... Bd4 {[%clk 0:00:27.6]} 49. Ne7+ {[%clk 0:00:22.3]}
49... Kf6 {[%clk 0:00:28.1]} 50. Nf5 {[%clk 0:00:21.6]} 50... Be5 {[%clk
0:00:28.1]} 51. Kh5 {[%clk 0:00:22.1]} 51... Bc7 {[%clk 0:00:26.8]} 52. Nh6
{[%clk 0:00:22.4]} 52... Bd8 {[%clk 0:00:26.5]} 53. Ng4+ {[%clk 0:00:22]} 53...
Ke6 {[%clk 0:00:25.5]} 54. Kg6 {[%clk 0:00:22.2]} 54... Kd6 {[%clk 0:00:24.8]}
55. Kf5 {[%clk 0:00:22.2]} 55... Kc5 {[%clk 0:00:24.8]} 56. e5 {[%clk
0:00:18.2]} 56... Kd4 {[%clk 0:00:23.2]} 57. e6 {[%clk 0:00:17.9]} 57... Kd3
{[%clk 0:00:21.2]} 58. Ne5+ {[%clk 0:00:16.6]} 58... Ke3 {[%clk 0:00:20.4]} 59.
Nc6 {[%clk 0:00:13.7]} 59... g4 {[%clk 0:00:12.7]} 60. Kxg4 {[%clk 0:00:13.2]}
60... Bf6 {[%clk 0:00:12.1]} 61. e7 {[%clk 0:00:13.5]} 61... Bxe7 {[%clk
0:00:11.5]} 62. Nxe7 {[%clk 0:00:14.4]} 1-0

[Event "*** Titled Tuesday Blitz"]
[Site "Chess.com"]
[Date "2021.04.20"]
[Round "1"]
[White "chess94cu"]
[Black "rachidhuilda"]
[Result "1-0"]
[WhiteElo "2605"]
[BlackElo "2301"]
[TimeControl "180+1"]
[EndTime "10:08:22 PDT"]
[Termination "chess94cu won by resignation"]

1. d4 {[%clk 0:02:58.8]} 1... Nf6 {[%clk 0:02:59.6]} 2. Nf3 {[%clk 0:02:56.6]}
2... d5 {[%clk 0:02:58.9]} 3. c4 {[%clk 0:02:55]} 3... c6 {[%clk 0:02:59.2]} 4.
Nbd2 {[%clk 0:02:53.9]} 4... Bf5 {[%clk 0:02:58.3]} 5. Qb3 {[%clk 0:02:43.5]}
5... Qb6 {[%clk 0:02:56.5]} 6. c5 {[%clk 0:02:42]} 6... Qc7 {[%clk 0:02:30.8]}
7. e3 {[%clk 0:02:39.9]} 7... Nbd7 {[%clk 0:02:25.7]} 8. Nh4 {[%clk 0:02:38.5]}
8... Bg4 {[%clk 0:02:24.8]} 9. h3 {[%clk 0:02:35.5]} 9... Be6 {[%clk 0:02:22.8]}
10. f4 {[%clk 0:02:27.8]} 10... g6 {[%clk 0:02:22.9]} 11. g4 {[%clk 0:02:22.7]}
11... Bg7 {[%clk 0:02:00]} 12. Ndf3 {[%clk 0:02:14.5]} 12... Ne4 {[%clk
0:01:34.9]} 13. Bd3 {[%clk 0:02:01.4]} 13... O-O {[%clk 0:01:11.7]} 14. Rg1
{[%clk 0:01:56.8]} 14... Ndf6 {[%clk 0:01:00.7]} 15. Ne5 {[%clk 0:01:42.8]}
15... b6 {[%clk 0:00:34.6]} 16. cxb6 {[%clk 0:01:39]} 16... axb6 {[%clk
0:00:34.6]} 17. f5 {[%clk 0:01:31]} 17... Bc8 {[%clk 0:00:34.7]} 18. g5 {[%clk
0:01:30]} 18... Nh5 {[%clk 0:00:34.5]} 19. fxg6 {[%clk 0:01:18.4]} 19... hxg6
{[%clk 0:00:31.5]} 20. Bxe4 {[%clk 0:01:17.7]} 20... dxe4 {[%clk 0:00:29]} 21.
Nhxg6 {[%clk 0:01:15.9]} 21... Be6 {[%clk 0:00:20.6]} 22. Qd1 {[%clk 0:00:49.3]}
22... fxg6 {[%clk 0:00:20.3]} 23. Nxg6 {[%clk 0:00:50.2]} 23... Qh2 {[%clk
0:00:17.2]} 24. Qxh5 {[%clk 0:00:15.6]} 24... Qf2+ {[%clk 0:00:11.3]} 25. Kd1
{[%clk 0:00:15.1]} 25... Qxg1+ {[%clk 0:00:11.6]} 26. Kc2 {[%clk 0:00:15]} 26...
Rf2+ {[%clk 0:00:06.4]} 27. Kb1 {[%clk 0:00:14.7]} 27... Bf7 {[%clk 0:00:06.6]}
28. Nxe7+ {[%clk 0:00:10.3]} 28... Kf8 {[%clk 0:00:07.1]} 29. g6 {[%clk
0:00:10.9]} 29... Rf1 {[%clk 0:00:04.1]} 30. Kc2 {[%clk 0:00:10.9]} 30... Qf2+
{[%clk 0:00:03.5]} 31. Kc3 {[%clk 0:00:09.6]} 31... Kxe7 {[%clk 0:00:03.6]} 32.
gxf7 {[%clk 0:00:08.8]} 32... Qxf7 {[%clk 0:00:04]} 33. Qg5+ {[%clk 0:00:07.2]}
33... Qf6 {[%clk 0:00:03.6]} 34. Qg2 {[%clk 0:00:08.1]} 34... c5 {[%clk
0:00:03.9]} 35. Qxe4+ {[%clk 0:00:07.8]} 35... Kf8 {[%clk 0:00:03.3]} 36. Qxa8+
{[%clk 0:00:07.5]} 36... Kf7 {[%clk 0:00:02.9]} 37. Qb7+ {[%clk 0:00:07.1]}
37... Kg6 {[%clk 0:00:03.5]} 38. Qe4+ {[%clk 0:00:07.2]} 38... Kf7 {[%clk
0:00:03.9]} 39. Kb3 {[%clk 0:00:07.6]} 39... cxd4 {[%clk 0:00:03.5]} 40. exd4
{[%clk 0:00:08.5]} 40... Qxd4 {[%clk 0:00:03.7]} 41. Qxd4 {[%clk 0:00:08.1]}
41... Bxd4 {[%clk 0:00:04.6]} 42. a4 {[%clk 0:00:06.1]} 42... Be3 {[%clk
0:00:04.3]} 43. Kc2 {[%clk 0:00:06.5]} 43... Bxc1 {[%clk 0:00:02.6]} 44. Rxc1
{[%clk 0:00:06.3]} 44... Rf2+ {[%clk 0:00:03.5]} 45. Kb1 {[%clk 0:00:05.5]}
45... Ke6 {[%clk 0:00:04.4]} 46. Rc3 {[%clk 0:00:05.3]} 46... Rf1+ {[%clk
0:00:04.6]} 47. Ka2 {[%clk 0:00:05.8]} 47... Kd5 {[%clk 0:00:05.2]} 48. Kb3
{[%clk 0:00:06.3]} 48... Rf4 {[%clk 0:00:05.6]} 49. Ka3 {[%clk 0:00:06]} 49...
Rf1 {[%clk 0:00:04.5]} 50. Kb4 {[%clk 0:00:05.6]} 50... Ra1 {[%clk 0:00:04.8]}
51. b3 {[%clk 0:00:04.5]} 51... Kd6 {[%clk 0:00:04.9]} 52. Kb5 {[%clk
0:00:04.5]} 52... Rd1 {[%clk 0:00:02.7]} 53. Kxb6 {[%clk 0:00:04.6]} 1-0

[Event "*** Titled Tuesday Blitz"]
[Site "Chess.com"]
[Date "2021.04.20"]
[Round "1"]
[White "NONmaster99"]
[Black "klimkoj"]
[Result "0-1"]
[WhiteElo "2315"]
[BlackElo "2614"]
[TimeControl "180+1"]
[EndTime "10:08:24 PDT"]
[Termination "klimkoj won on time"]

1. c4 {[%clk 0:03:00.9]} 1... Nf6 {[%clk 0:02:59.7]} 2. Nc3 {[%clk 0:03:00.3]}
2... e6 {[%clk 0:02:58]} 3. e4 {[%clk 0:02:59.9]} 3... d5 {[%clk 0:02:58.9]} 4.
e5 {[%clk 0:02:59.9]} 4... d4 {[%clk 0:02:59.2]} 5. exf6 {[%clk 0:02:59.5]} 5...
dxc3 {[%clk 0:03:00.1]} 6. fxg7 {[%clk 0:02:59.3]} 6... cxd2+ {[%clk 0:02:55.3]}
7. Qxd2 {[%clk 0:03:00.2]} 7... Qxd2+ {[%clk 0:02:52.3]} 8. Bxd2 {[%clk
0:03:01.1]} 8... Bxg7 {[%clk 0:02:52.8]} 9. O-O-O {[%clk 0:03:01.5]} 9... c5
{[%clk 0:02:43.7]} 10. Be3 {[%clk 0:02:45.9]} 10... b6 {[%clk 0:02:42.5]} 11.
Be2 {[%clk 0:02:43.9]} 11... Bb7 {[%clk 0:02:39.5]} 12. Bf3 {[%clk 0:02:43.8]}
12... Nc6 {[%clk 0:02:23.2]} 13. Ne2 {[%clk 0:02:39.3]} 13... Ke7 {[%clk
0:02:04.5]} 14. a3 {[%clk 0:02:29.8]} 14... Na5 {[%clk 0:01:54.7]} 15. Bxb7
{[%clk 0:02:28.1]} 15... Nxb7 {[%clk 0:01:55.6]} 16. Kc2 {[%clk 0:02:22.7]}
16... Nd6 {[%clk 0:01:48.7]} 17. b3 {[%clk 0:02:19.1]} 17... Nf5 {[%clk
0:01:36.8]} 18. g4 {[%clk 0:01:48.6]} 18... Nxe3+ {[%clk 0:01:34.5]} 19. fxe3
{[%clk 0:01:49.5]} 19... Be5 {[%clk 0:01:32.2]} 20. Nf4 {[%clk 0:01:34.9]} 20...
Rad8 {[%clk 0:01:15]} 21. h3 {[%clk 0:01:21.2]} 21... Rxd1 {[%clk 0:01:01.3]}
22. Rxd1 {[%clk 0:01:22.1]} 22... a6 {[%clk 0:00:57.6]} 23. a4 {[%clk 0:01:20]}
23... Rb8 {[%clk 0:00:49.2]} 24. Nd3 {[%clk 0:01:02.8]} 24... Bg7 {[%clk
0:00:46]} 25. a5 {[%clk 0:00:50]} 25... b5 {[%clk 0:00:30]} 26. Rb1 {[%clk
0:00:38]} 26... bxc4 {[%clk 0:00:30.9]} 27. bxc4 {[%clk 0:00:37.7]} 27... Rxb1
{[%clk 0:00:23.3]} 28. Kxb1 {[%clk 0:00:38.6]} 28... Kd6 {[%clk 0:00:24]} 29.
Kc2 {[%clk 0:00:31.1]} 29... Bf6 {[%clk 0:00:21.9]} 30. e4 {[%clk 0:00:30.6]}
30... Bd8 {[%clk 0:00:20.3]} 31. e5+ {[%clk 0:00:26.6]} 31... Kc6 {[%clk
0:00:20.1]} 32. Nf2 {[%clk 0:00:20.1]} 32... Bxa5 {[%clk 0:00:17.9]} 33. Ne4
{[%clk 0:00:20.3]} 33... Bc7 {[%clk 0:00:15.3]} 34. Ng5 {[%clk 0:00:20.3]} 34...
Bxe5 {[%clk 0:00:14.5]} 35. Nxf7 {[%clk 0:00:20.2]} 35... Bf6 {[%clk 0:00:13.8]}
36. g5 {[%clk 0:00:19.8]} 36... Bg7 {[%clk 0:00:11.7]} 37. h4 {[%clk 0:00:17.7]}
37... Kd7 {[%clk 0:00:10.6]} 38. h5 {[%clk 0:00:17.5]} 38... Ke7 {[%clk
0:00:10.3]} 39. g6 {[%clk 0:00:18]} 39... hxg6 {[%clk 0:00:09.7]} 40. hxg6
{[%clk 0:00:18.9]} 40... Kf6 {[%clk 0:00:06.8]} 41. Nd8 {[%clk 0:00:18]} 41...
e5 {[%clk 0:00:06.3]} 42. Nb7 {[%clk 0:00:17.8]} 42... Bf8 {[%clk 0:00:06]} 43.
g7 {[%clk 0:00:15.9]} 43... Kxg7 {[%clk 0:00:05.1]} 44. Kd3 {[%clk 0:00:16.3]}
44... Kf6 {[%clk 0:00:04.7]} 45. Ke4 {[%clk 0:00:16.9]} 45... Ke6 {[%clk
0:00:03.7]} 46. Na5 {[%clk 0:00:16.4]} 46... Bd6 {[%clk 0:00:02.6]} 47. Nb7
{[%clk 0:00:15.4]} 47... Be7 {[%clk 0:00:02.3]} 48. Na5 {[%clk 0:00:15]} 48...
Bd8 {[%clk 0:00:02]} 49. Nb3 {[%clk 0:00:15.5]} 49... Bb6 {[%clk 0:00:02.3]} 50.
Na1 {[%clk 0:00:13]} 50... a5 {[%clk 0:00:02.9]} 51. Nc2 {[%clk 0:00:12.8]}
51... a4 {[%clk 0:00:03.6]} 52. Na3 {[%clk 0:00:12.4]} 52... Ba5 {[%clk
0:00:04.1]} 53. Nb5 {[%clk 0:00:12.8]} 53... Bb4 {[%clk 0:00:04.3]} 54. Nc7+
{[%clk 0:00:13.2]} 54... Kd6 {[%clk 0:00:03.9]} 55. Nb5+ {[%clk 0:00:13.3]}
55... Ke6 {[%clk 0:00:04.4]} 56. Nc7+ {[%clk 0:00:12.1]} 56... Kd7 {[%clk
0:00:04.9]} 57. Nd5 {[%clk 0:00:01.7]} 57... a3 {[%clk 0:00:04.9]} 0-1